bitfinex/quotes_ETHUSD_20240711
["timestamp","ask_amount","ask_price","bid_price","bid_amount"]
[1720712678968,3.18705,3137.7,3136.6,7.24]
[1720712678969,3.18716,3137.6,3136.6,7.24]
[1720712679174,3.18716,3137.6,3136.2,5.52466]
[1720712679175,3.18716,3137.6,3136.3,7.24]
[1720712679325,3.18688,3137.9,3136.5,3.18826]
[1720712679530,3.18711,3137.7,3136.4,1.276466]
[1720712679718,3.18711,3137.7,3136.4,4.464826]
[1720712679935,3.1867,3138.1,3136.5,0.06374822]
[1720712680250,3.1867,3138.1,3136.4,1.276466]
[1720712680251,3.18674,3138.0,3136.6,3.18807]
[1720712680456,3.18708,3137.7,3136.6,0.7652856]
[1720712680664,3.18623,3138.6,3137.0,3.18774]
[1720712680832,10.48573,3139.0,3137.1,0.06373783]
[1720712680833,3.18627,3138.5,3137.1,0.06373783]
[1720712681026,3.18627,3138.5,3137.1,0.32514778]
[1720712681536,3.18613,3138.6,3137.2,5.64275]
[1720712681750,2.2907,3138.9,3137.2,5.64275]
[1720712682064,3.18609,3138.7,3137.4,3.18732]
[1720712682261,2.2907,3138.9,3137.4,3.18732]
[1720712682262,0.637211,3138.6,3137.5,3.18725]
[1720712682559,0.65333848,3139.3,3137.5,3.18725]
[1720712682560,3.18611,3138.7,3137.5,3.18725]
[1720712682924,3.18614,3138.6,3137.4,0.883007]
[1720712683160,3.18611,3138.7,3137.4,0.883007]
[1720712683367,3.18611,3138.7,3137.6,0.2]
[1720712683368,3.18632,3138.5,3137.6,0.2]
[1720712683585,2.2669,3139.5,3137.6,0.2]
[1720712683586,3.18655,3138.2,3137.6,0.2]
[1720712683920,3.18587,3138.9,3137.6,0.2]
[1720712683921,3.18601,3138.8,3137.6,0.2]
[1720712684125,3.18607,3138.7,3137.6,0.2]
[1720712684564,3.18631,3138.5,3137.6,0.2]
[1720712684882,7.009868,3138.5,3137.6,0.2]
[1720712685193,3.18654,3138.2,3137.6,0.2]
[1720712685971,0.637238,3138.5,3137.6,0.2]
[1720712685972,3.1869,3137.9,3137.6,0.2]
[1720712686289,3.18664,3138.1,3137.6,0.2]
[1720712686760,3.18645,3138.3,3137.6,0.2]
[1720712686953,0.3823688,3138.3,3137.6,0.2]
[1720712687153,3.18597,3138.8,3137.6,0.2]
[1720712687154,3.18628,3138.5,3137.6,0.2]
[1720712687389,3.18696,3137.8,3137.6,0.2]
[1720712687584,3.18696,3137.8,3137.6,0.4]
[1720712687585,3.18704,3137.7,3137.6,0.4]
[1720712688004,10.43082,3137.7,3137.6,0.4]
[1720712688203,3.18811,3136.7,3136.0,7.24]
[1720712688415,3.18811,3136.7,3135.7,7.24]
[1720712688618,3.18827,3136.5,3135.7,7.24]
[1720712688794,2.4348,3137.4,3135.7,7.24]
[1720712689005,1.5,3138.4,3135.9,3.18881]
[1720712689006,3.18745,3137.3,3135.9,3.18881]
[1720712689315,1.5,3138.4,3136.1,3.1886]
[1720712689316,0.3197,3138.3,3136.1,3.1886]
[1720712689513,0.3197,3138.3,3136.4,3.18836]
[1720712689514,3.18705,3137.7,3136.4,3.18836]
[1720712689833,3.18756,3137.2,3136.0,5.68412]
[1720712690128,3.18771,3137.1,3136.0,2.4954]
[1720712690275,6.37545,3137.1,3136.0,2.4954]
[1720712690472,3.18771,3137.1,3136.0,2.4954]
[1720712690676,3.1875,3137.3,3136.0,2.4954]
[1720712690923,3.82498,3137.3,3136.0,3.787819]
[1720712691085,0.318705,3137.7,3136.1,0.06375927]
[1720712691086,3.505755,3137.7,3136.1,0.06375927]
[1720712691291,0.318705,3137.7,3136.4,3.18835]
[1720712691510,3.18722,3137.6,3136.4,3.25210034]
[1720712691804,3.18722,3137.6,3136.1,3.18862]
[1720712692001,3.18725,3137.5,3136.2,3.1885]
[1720712692191,3.18725,3137.5,3136.4,3.18835]
[1720712692625,3.18725,3137.5,3136.3,0.637712]
[1720712692949,3.18746,3137.3,3136.0,3.787819]
[1720712693119,3.18746,3137.3,3136.0,6.976569]
[1720712693327,0.3505925,3137.6,3136.0,6.976569]
[1720712693328,0.3505925,3137.6,3136.3,3.1884]
[1720712693659,0.3505925,3137.6,3136.4,3.25211035]
[1720712693804,0.3505925,3137.6,3136.5,0.64405104]
[1720712694007,2.4348,3138.4,3136.6,3.25190045]
[1720712694367,2.4348,3138.4,3136.2,7.24]
[1720712694368,3.18737,3137.4,3136.2,7.24]
[1720712694650,3.18737,3137.4,3136.0,3.787819]
[1720712694651,3.18758,3137.2,3136.0,3.787819]
[1720712694847,4.29161563,3137.1,3136.0,3.787819]
[1720712695066,4.29172563,3137.0,3136.0,2.4954]
[1720712695279,1.10388563,3136.9,3136.0,2.4954]
[1720712695430,1.10388563,3137.1,3136.1,3.18866]
[1720712695630,3.18761,3137.2,3136.0,2.4954]
[1720712695933,4.84152984,3137.1,3136.0,2.4954]
[1720712696136,3.18789,3136.9,3136.0,2.4954]
[1720712696337,1.10386984,3136.8,3136.1,3.18865]
[1720712696646,3.18728,3137.5,3136.2,3.18854]
[1720712696647,3.18737,3137.4,3136.2,3.18854]
[1720712696842,3.18778,3137.0,3136.0,2.4954]
[1720712697157,1.10383825,3136.9,3136.0,2.4954]
[1720712697376,4.29139825,3137.2,3136.1,4.16214]
[1720712697529,1.10383825,3137.1,3136.1,4.16214]
[1720712697939,3.18648,3138.3,3136.1,4.16214]
[1720712697940,1.10380372,3137.0,3136.2,3.18856]
[1720712698164,1.10376108,3136.9,3136.1,0.97354]
[1720712698383,3.18755,3137.2,3136.1,3.18866]
[1720712698528,3.18749,3137.3,3136.1,3.18866]
[1720712698529,1.10387622,3137.1,3136.1,3.18866]
[1720712698730,1.10387622,3137.0,3136.1,3.18866]
[1720712698930,1.10378967,3136.9,3136.0,2.4954]
[1720712699174,1.10378967,3136.8,3136.0,2.4954]
[1720712699374,1.10378967,3136.9,3136.0,2.4954]
[1720712699557,0.42915397,3136.9,3136.0,2.4954]
[1720712699887,0.42915397,3136.9,3134.5,3.19029]
[1720712699888,3.18824,3136.6,3135.3,2.2616]
[1720712700033,3.18861,3136.2,3134.8,3.18993]
[1720712700228,3.18824,3136.6,3134.6,5.45174]
[1720712700229,1.10378967,3136.1,3134.6,2.2616]
[1720712700557,4.29261967,3136.0,3134.7,3.19008]
[1720712700739,2.3199,3137.0,3134.6,2.2616]
[1720712701068,2.3199,3137.0,3134.9,3.18983]
[1720712701069,3.18857,3136.2,3134.9,3.18983]
[1720712701240,3.18886,3136.0,3134.7,0.22616]
[1720712701440,1.10424751,3135.9,3134.7,0.22616]
[1720712701640,3.18894,3135.9,3134.7,0.22616]
[1720712701943,3.18894,3135.9,3134.6,2.2616]
[1720712702152,3.18834,3136.5,3134.6,2.2616]
[1720712702153,3.18831,3136.5,3135.1,3.18967]
[1720712702342,0.78199,3136.9,3135.8,3.18888]
[1720712702343,1.10425164,3136.4,3135.8,3.18888]
[1720712702583,3.18752,3137.3,3135.8,3.18888]
[1720712702584,3.18757,3137.2,3136.0,3.18869]
[1720712702783,1.1039644,3137.1,3135.6,2.3742]
[1720712703070,3.1886,3136.2,3134.9,3.18981]
[1720712703289,3.18895,3135.9,3134.8,2.478]
[1720712703481,3.18895,3135.9,3134.3,3.19046]
[1720712703482,3.18914,3135.7,3134.3,3.19046]
[1720712703669,1.10427406,3135.6,3134.3,3.19046]
[1720712703892,3.18938,3135.4,3134.3,3.19046]
[1720712704120,3.18903,3135.8,3134.5,3.19022]
[1720712704271,4.29346137,3135.7,3134.5,3.19022]
[1720712704624,1.10437137,3135.6,3134.5,3.19022]
[1720712705106,1.10437137,3135.6,3134.5,3.1902]
[1720712705313,1.10438543,3135.8,3134.5,3.1902]
[1720712705493,3.1889,3135.9,3134.5,3.1902]
[1720712705494,0.31889,3135.9,3134.6,0.38281189]
[1720712705696,5.49325,3136.6,3134.9,3.18981]
[1720712705697,3.18875,3136.1,3134.9,3.18981]
[1720712706029,3.18909,3135.7,3134.6,7.55902]
[1720712706326,2.305,3136.6,3134.6,10.74912]
[1720712706485,2.305,3136.6,3134.6,7.55902]
[1720712706486,3.18899,3135.8,3134.6,7.55902]
[1720712706667,3.18848,3136.3,3135.0,3.18978]
[1720712706874,1.10427421,3136.2,3135.0,3.18978]
[1720712707076,1.10427421,3136.1,3135.0,3.18978]
[1720712707297,1.10427421,3136.2,3135.0,3.18978]
[1720712707500,0.2305,3136.5,3135.3,3.18941]
[1720712707681,3.41882,3136.5,3135.3,3.18941]
[1720712708019,3.18852,3136.3,3135.2,2.2946]
[1720712708217,3.41882,3136.5,3135.3,3.18948]
[1720712708524,3.18797,3136.8,3135.6,3.18909]
[1720712708816,3.18819,3136.6,3135.4,3.1893]
[1720712709187,3.18797,3136.8,3135.5,3.18928]
[1720712709383,3.1878,3137.0,3135.7,3.18905]
[1720712709595,3.1878,3137.0,3135.6,3.18909]
[1720712709818,3.1878,3137.0,3135.6,3.83330892]
[1720712709819,1.42284074,3136.9,3135.6,3.83330892]
[1720712710025,0.31878,3136.9,3135.7,3.2528392]
[1720712710173,3.18797,3136.8,3135.7,3.18907]
[1720712710373,3.18777,3137.0,3135.7,3.18907]
[1720712710574,3.18796,3136.8,3135.7,3.18907]
[1720712710807,3.18796,3136.8,3135.7,3.25283919]
[1720712710977,3.18796,3136.8,3135.8,0.70796211]
[1720712711180,3.18796,3136.8,3135.5,3.18927]
[1720712711379,3.18818,3136.6,3135.3,10.42947]
[1720712711578,3.18868,3136.1,3135.3,7.24]
[1720712712110,3.18878,3136.0,3135.3,7.24]
[1720712712281,3.18852,3136.3,3135.3,7.24]
[1720712712479,0.318852,3136.2,3135.3,7.24]
[1720712712823,3.18847,3136.3,3135.3,7.24]
[1720712713006,0.65703982,3136.7,3135.5,3.18922]
[1720712713211,0.55,3136.8,3135.5,3.18922]
[1720712713408,3.18828,3136.5,3135.4,3.18936]
[1720712713630,3.18813,3136.7,3135.4,3.18936]
[1720712713785,1.10415087,3136.6,3135.5,1.042936]
[1720712713982,3.18813,3136.7,3135.5,1.042936]
[1720712714220,3.73792,3136.9,3135.7,3.18907]
[1720712714393,1.10405945,3136.8,3135.8,2.33286656]
[1720712714725,3.18796,3136.8,3135.8,2.2691]
[1720712714941,3.18796,3136.8,3135.5,4.232156]
[1720712714942,1.10408279,3136.7,3135.5,4.232156]
[1720712715079,1.10409349,3136.6,3135.5,1.042936]
[1720712715280,3.18807,3136.7,3135.5,1.042936]
[1720712715476,0.637582,3136.8,3135.6,3.18915]
[1720712715725,4.29218088,3136.7,3135.5,1.042936]
[1720712715905,3.18811,3136.7,3135.5,1.042936]
[1720712716116,3.18811,3136.7,3135.6,3.18916]
[1720712716311,1.10409602,3136.6,3135.7,0.06377118]
[1720712716476,6.37584,3136.9,3135.7,0.06377118]
[1720712716477,3.18791,3136.9,3135.7,0.06377118]
[1720712716681,1.42284586,3136.8,3135.7,3.25284118]
[1720712716875,3.8444796,3137.1,3135.7,3.25278118]
[1720712717109,0.6567996,3137.4,3136.2,3.18849]
[1720712717321,1.10388941,3137.3,3136.3,0.06375819]
[1720712717527,1.10388941,3137.2,3135.9,10.42883]
[1720712717695,1.10388941,3137.3,3136.2,3.25222975]
[1720712717896,2.4337,3137.7,3136.2,3.25222975]
[1720712717897,1.10384646,3137.2,3137.1,0.2]
[1720712718127,3.0904996,3137.7,3137.1,0.2]
[1720712718335,4.1720894,3137.9,3137.1,0.2]
[1720712718336,1.1037788,3137.6,3137.1,0.2]
[1720712718488,0.6567996,3137.9,3137.1,0.2]
[1720712718834,3.18733,3137.5,3137.1,0.2]
[1720712719147,1.42257547,3137.4,3137.1,0.2]
[1720712719320,3.18755,3137.2,3137.1,0.2]
[1720712719485,7.47894924,3137.2,3137.1,0.2]
[1720712719689,8.13586412,3137.2,3137.1,0.2]
[1720712719932,8.46426392,3137.2,3137.1,0.2]
[1720712720232,9.59954313,3137.2,3137.1,0.2]
[1720712720433,7.06841477,3137.2,3137.1,0.2]
[1720712720638,4.29151452,3137.2,3137.1,0.2]
[1720712721342,0.9851994,3137.5,3137.1,0.2]
[1720712721343,0.65642164,3137.5,3137.1,0.2]
[1720712721645,1.10383225,3137.4,3137.1,0.2]
[1720712721802,0.65642164,3137.7,3137.1,0.2]
[1720712722005,3.18695,3137.8,3137.1,0.4]
[1720712722188,3.18715,3137.6,3137.1,0.4]
[1720712722388,3.18725,3137.5,3137.1,0.4]
[1720712722823,3.18755,3137.2,3137.1,0.4]
[1720712723191,8.13545249,3137.2,3137.1,0.4]
[1720712723405,8.46423025,3137.2,3137.1,0.4]
[1720712723733,9.43648979,3137.2,3137.1,0.4]
[1720712723953,2.3598,3137.1,3135.7,7.24]
[1720712724094,0.6562363,3136.8,3135.3,7.24]
[1720712724291,2.63838279,3137.0,3135.3,7.24]
[1720712724292,3.18881,3136.0,3135.3,7.24]
[1720712724531,3.18881,3136.0,3135.0,9.6386]
[1720712724732,3.18881,3136.0,3135.0,12.133456]
[1720712725851,3.18899,3135.8,3135.0,7.24]
[1720712726254,3.18924,3135.6,3134.7,7.24]
[1720712726756,3.18909,3135.7,3134.7,7.24]
[1720712727142,3.18938,3135.5,3134.7,7.24]
[1720712727324,3.1896,3135.2,3134.7,7.24]
[1720712727525,3.18981,3135.0,3134.3,7.24]
[1720712727775,6.37969,3135.0,3134.3,7.24]
[1720712728069,0.74836011,3135.2,3134.3,7.24]
[1720712728070,3.1899,3134.9,3134.3,7.24]
[1720712728581,6.37988,3134.9,3134.3,7.24]
[1720712728891,3.18986,3135.0,3134.3,7.24]
[1720712729069,3.19051,3134.3,3133.4,2.4543]
[1720712729673,3.1904,3134.4,3133.4,2.4543]
[1720712729828,3.19023,3134.6,3133.4,2.4543]
[1720712730230,0.556786,3134.9,3133.7,3.19111]
[1720712730579,0.74836011,3135.2,3133.4,2.51811655]
[1720712730580,3.19011,3134.7,3133.5,3.004]
[1720712730779,1.40375974,3135.2,3133.4,2.4543]
[1720712730780,0.65539963,3135.0,3133.4,2.4543]
[1720712730937,3.18995,3134.9,3133.6,3.19118]
[1720712731133,3.73969,3135.1,3133.8,3.191]
[1720712731336,3.1899,3134.9,3133.8,3.191]
[1720712731572,3.1899,3134.9,3133.8,3.601234]
[1720712731772,0.65526335,3135.2,3133.9,0.06380614]
[1720712731931,0.65526335,3135.5,3134.0,3.19074]
[1720712732135,3.18968,3135.2,3134.0,3.19074]
[1720712732479,3.1897,3135.1,3133.8,3.601174]
[1720712732704,3.1897,3135.1,3133.9,3.5509974]
[1720712733607,3.1897,3135.1,3134.0,3.1908]
[1720712734418,3.1897,3135.1,3133.6,3.19112]
[1720712734567,3.1902,3134.6,3133.4,2.4543]
[1720712734767,3.1904,3134.4,3133.4,2.4543]
[1720712735167,3.1905,3134.3,3133.4,2.4543]
[1720712735720,3.19072,3134.1,3132.9,17.78255]
[1720712735870,3.19089,3134.0,3132.9,14.5907]
[1720712736077,3.19089,3134.0,3132.9,2.4707]
[1720712736361,3.19089,3134.0,3132.7,7.24]
[1720712736362,0.319089,3133.9,3132.7,7.24]
[1720712736478,3.1915,3133.4,3132.7,7.24]
[1720712736686,0.55,3133.8,3132.4,2.4707]
[1720712736687,3.19111,3133.7,3132.4,2.4707]
[1720712736884,3.84592335,3134.2,3132.8,3.19201]
[1720712737099,3.1909,3134.0,3132.8,3.19201]
[1720712737303,0.65526335,3134.4,3132.9,0.38302711]
[1720712737513,3.19062,3134.2,3132.9,0.319201]
[1720712737823,3.19076,3134.1,3132.9,0.319201]
[1720712737987,3.19117,3133.7,3132.4,5.4747]
[1720712738188,3.19122,3133.6,3132.4,2.4707]
[1720712738413,3.19143,3133.4,3132.4,2.4707]
[1720712738628,3.19109,3133.8,3132.4,2.4707]
[1720712738800,3.74085,3134.0,3132.6,3.19221]
[1720712739136,3.19074,3134.1,3132.8,3.19195]
[1720712739274,0.55,3134.4,3132.8,3.19195]
[1720712739470,3.19062,3134.2,3132.8,3.19199]
[1720712739668,3.19079,3134.1,3132.7,3.19207]
[1720712739874,3.19079,3134.1,3132.8,3.830451]
[1720712740074,3.19089,3134.0,3132.8,0.638421]
[1720712740471,3.19093,3133.9,3132.8,0.638421]
[1720712740907,3.19055,3134.3,3132.8,3.830441]
[1720712741075,3.19062,3134.2,3132.8,3.830441]
[1720712741288,0.55,3134.1,3132.9,0.3830441]
[1720712741494,3.19064,3134.2,3132.9,0.3830441]
[1720712741807,3.19064,3134.2,3132.8,3.19202]
[1720712741808,3.19089,3134.0,3132.8,3.19202]
[1720712742225,0.55,3134.1,3132.5,4.16336]
[1720712742517,0.55,3134.2,3132.5,4.16336]
[1720712742724,3.19147,3133.4,3132.4,2.4707]
[1720712742925,3.19168,3133.2,3132.4,2.4707]
[1720712743092,3.19122,3133.6,3132.0,10.244]
[1720712743282,5.48816,3134.0,3132.6,3.19223]
[1720712743479,3.19108,3133.8,3132.6,0.319223]
[1720712744121,1.098816,3133.9,3132.6,0.319223]
[1720712744122,0.548816,3133.9,3132.6,0.319223]
[1720712744339,3.19095,3133.9,3132.6,3.511453]
[1720712744477,3.19071,3134.1,3132.9,3.19187]
[1720712744681,0.31902,3134.5,3132.6,0.319223]
[1720712744682,3.19126,3133.6,3132.6,0.319223]
[1720712745150,3.19126,3133.6,3132.2,7.24]
[1720712745426,3.19147,3133.4,3132.0,6.19684]
[1720712745594,3.19147,3133.4,3131.9,5.67142]
[1720712745595,3.19147,3133.4,3132.1,3.19272]
[1720712745780,3.1914,3133.5,3132.3,3.19253]
[1720712746008,3.7521,3133.5,3132.3,3.831055]
[1720712746221,3.19142,3133.4,3132.3,3.831055]
[1720712746517,2.4156,3133.7,3132.3,0.638525]
[1720712746724,2.4156,3133.7,3132.3,3.19251]
[1720712747085,5.60674,3133.7,3132.5,6.38452]
[1720712747323,5.60674,3133.7,3132.6,3.19223]
[1720712747626,5.60674,3133.7,3132.0,3.004]
[1720712747627,3.19096,3133.9,3132.4,3.19236]
[1720712747786,3.19118,3133.7,3132.4,3.19236]
[1720712748120,3.510398,3133.6,3132.4,3.19239]
[1720712748480,3.510398,3133.6,3132.2,3.19261]
[1720712748681,3.19144,3133.4,3132.2,3.19255]
[1720712748922,3.1919,3133.0,3131.9,2.4785]
[1720712749081,3.1919,3133.0,3131.8,10.43299]
[1720712749082,3.19204,3132.8,3131.8,7.24]
[1720712749279,3.19204,3132.8,3131.5,3.19334]
[1720712749280,0.638404,3132.8,3131.7,3.19314]
[1720712749530,3.19189,3133.0,3131.7,3.19309]
[1720712749685,6.38379,3133.0,3131.7,3.19309]
[1720712750024,2.4124,3133.1,3131.4,7.24]
[1720712750238,2.4124,3133.1,3131.0,7.24]
[1720712750239,3.19264,3132.2,3131.0,7.24]
[1720712750423,3.19264,3132.2,3130.8,2.4179]
[1720712750424,0.319264,3132.1,3130.8,2.4179]
[1720712750623,3.512064,3132.1,3130.9,3.19394]
[1720712750826,3.512064,3132.1,3130.6,7.24]
[1720712750827,0.319264,3132.1,3130.6,7.24]
[1720712751129,3.19303,3131.9,3130.6,10.43426]
[1720712751520,3.74289,3132.0,3130.6,10.43426]
[1720712751521,0.55,3132.0,3130.7,3.19416]
[1720712751731,0.55,3132.0,3130.6,7.24]
[1720712751732,3.19295,3131.9,3130.8,4.237466]
[1720712752036,3.19295,3131.9,3130.8,1.043416]
[1720712752255,0.319264,3132.1,3130.6,7.24]
[1720712752256,3.19313,3131.8,3130.6,7.24]
[1720712752391,0.319264,3132.1,3130.3,2.3837]
[1720712752392,0.55,3132.0,3130.3,2.3837]
[1720712752597,0.55,3132.0,3130.3,5.5782]
[1720712752598,3.19338,3131.5,3130.3,5.5782]
[1720712752815,3.19338,3131.5,3130.4,0.55782]
[1720712753128,3.19338,3131.5,3130.4,3.75229]
[1720712753328,3.19315,3131.7,3130.4,3.75229]
[1720712753329,3.19328,3131.6,3130.4,3.75229]
[1720712754332,3.19315,3131.7,3130.4,3.75229]
[1720712754333,0.55,3132.0,3130.4,0.55782]
[1720712754538,3.19295,3131.9,3130.6,3.19419]
[1720712754865,3.19295,3131.9,3130.7,3.19417]
[1720712755364,3.19296,3131.9,3130.7,3.19411]
[1720712755516,3.19296,3131.9,3130.5,3.19432]
[1720712755865,3.19296,3131.9,3130.6,3.19425]
[1720712756067,1.1830254,3132.0,3130.3,5.57825]
[1720712756068,3.19336,3131.5,3130.3,5.57825]
[1720712756219,3.19336,3131.5,3130.3,8.77275]
[1720712756417,3.19336,3131.5,3130.3,5.5782]
[1720712756617,3.19336,3131.5,3130.3,2.3837]
[1720712756919,3.1938,3131.1,3129.9,7.24]
[1720712757123,0.31938,3131.0,3129.9,3.19489]
[1720712757463,0.31938,3131.0,3130.0,3.19487]
[1720712757686,3.19365,3131.3,3129.8,2.4897]
[1720712757687,3.19377,3131.1,3129.8,5.68471]
[1720712757966,3.19377,3131.1,3129.9,3.19495]
[1720712758129,3.19377,3131.1,3129.8,2.4897]
[1720712758130,6.38762,3131.1,3129.8,2.4897]
[1720712758462,3.19419,3130.7,3129.5,7.24]
[1720712758787,3.19438,3130.5,3129.5,7.24]
[1720712758919,0.319438,3130.4,3129.1,7.24]
[1720712759128,0.319438,3130.4,3129.2,3.1956]
[1720712759326,5.49618,3131.3,3129.2,3.1956]
[1720712759551,3.19419,3130.7,3129.4,3.19548]
[1720712759865,3.19387,3131.0,3129.5,0.06389952]
[1720712760017,2.6223,3131.3,3129.8,3.19501]
[1720712760018,2.3026,3131.3,3129.8,3.19501]
[1720712760217,0.43759854,3131.8,3130.0,3.19488]
[1720712760417,1.01946985,3131.7,3130.0,3.814768]
[1720712760618,3.19375,3131.2,3130.0,0.619888]
[1720712760935,0.3197,3131.6,3130.3,3.19449]
[1720712761124,3.63072854,3131.8,3130.6,3.1942]
[1720712761125,0.43759854,3131.8,3130.6,3.1942]
[1720712761555,0.43759854,3131.8,3130.4,3.19444]
[1720712761556,3.19337,3131.5,3129.9,3.004]
[1720712761762,0.43759854,3131.8,3129.9,3.004]
[1720712761763,3.19332,3131.6,3130.2,3.19467]
[1720712761939,9.6691,3132.4,3130.8,3.19398]
[1720712762122,9.6691,3132.4,3130.9,3.19394]
[1720712762123,3.1927,3132.2,3130.9,3.19394]
[1720712762331,3.19275,3132.1,3130.9,3.19394]
[1720712762557,4.15954,3132.3,3130.9,3.19394]
[1720712762763,4.15953,3132.3,3130.9,3.19394]
[1720712762971,6.38563,3132.1,3130.8,3.19398]
[1720712763177,3.19316,3131.7,3130.6,2.3513]
[1720712763536,3.19305,3131.8,3130.6,5.54555]
[1720712763851,0.638563,3132.0,3130.7,0.06387419]
[1720712764048,5.53799,3132.9,3130.7,3.0678655]
[1720712764256,5.53799,3132.9,3131.5,3.19335]
[1720712764551,5.53799,3132.9,3131.2,3.19361]
[1720712764552,3.19224,3132.6,3131.2,3.19361]
[1720712764766,3.19214,3132.7,3132.2,0.2]
[1720712765095,3.19127,3133.6,3132.2,0.2]
[1720712765096,5.53737,3133.5,3132.2,0.2]
[1720712765298,2.346,3133.5,3132.2,0.2]
[1720712765581,3.51125,3133.3,3132.2,0.2]
[1720712765777,3.19229,3132.6,3132.2,0.2]
[1720712765981,3.19193,3132.9,3132.2,0.2]
[1720712766151,3.19254,3132.3,3132.2,0.2]
[1720712766574,6.93508,3132.3,3132.2,0.2]
[1720712766880,6.93508,3132.3,3130.4,7.24]
[1720712766881,2.3206,3132.2,3130.4,7.24]
[1720712767077,2.3206,3132.2,3129.9,7.24]
[1720712767078,3.19414,3130.8,3129.9,7.24]
[1720712767388,3.19414,3130.8,3129.5,3.19531]
[1720712767389,0.319414,3130.7,3129.5,3.19531]
[1720712767587,3.19414,3130.8,3129.5,3.19531]
[1720712767950,2.3206,3131.2,3129.7,3.19511]
[1720712768186,3.19358,3131.3,3129.9,3.004]
[1720712768364,3.19358,3131.3,3129.7,3.19515]
[1720712768365,3.19358,3131.3,3129.8,3.19507]
[1720712768666,0.3197,3131.7,3129.5,3.004]
[1720712768877,2.3569,3131.8,3129.3,2.4519]
[1720712768878,3.19407,3130.8,3129.3,5.64741]
[1720712769207,3.1941,3130.8,3129.3,2.4519]
[1720712769371,3.19444,3130.5,3129.1,3.19572]
[1720712769698,3.19444,3130.5,3129.0,10.43583]
[1720712769906,0.319444,3130.4,3129.2,3.19568]
[1720712770263,0.319444,3130.4,3128.5,3.19637]
[1720712770264,3.19515,3129.8,3128.6,7.24]
[1720712770563,3.19515,3129.8,3128.1,3.19675]
[1720712770564,3.1953,3129.6,3128.1,3.19675]
[1720712770872,3.19515,3129.8,3128.0,7.24]
[1720712770873,3.19541,3129.5,3128.2,3.19665]
[1720712771091,3.19541,3129.5,3127.9,3.004]
[1720712771092,3.5146,3130.0,3128.6,3.19628]
[1720712771392,3.19471,3130.2,3128.7,0.06391157]
[1720712771555,5.51021,3130.3,3128.7,5.3825]
[1720712771749,0.319444,3130.4,3129.2,3.19563]
[1720712771998,0.319444,3130.4,3129.1,3.1958]
[1720712772151,3.19463,3130.3,3129.1,0.639169]
[1720712772353,3.19479,3130.1,3128.5,3.1964]
[1720712772812,0.3197,3130.3,3128.3,0.319665]
[1720712773085,3.19528,3129.7,3128.1,3.19672]
[1720712773249,3.1954,3129.5,3128.1,3.19672]
[1720712773451,2.4818,3129.8,3128.0,7.24]
[1720712773655,2.4818,3129.8,3127.7,0.1153907]
[1720712773656,3.19597,3129.0,3127.7,0.1153907]
[1720712773896,3.19597,3129.0,3127.7,3.3126207]
[1720712774108,0.319597,3128.9,3127.7,1.06678877]
[1720712774626,3.19534,3129.6,3128.1,3.19679]
[1720712774627,3.1953,3129.6,3128.1,3.19679]
[1720712774802,0.00082786,3129.4,3128.1,3.19679]
[1720712775327,3.19581,3129.1,3127.9,3.004]
[1720712775486,0.00082786,3129.4,3127.7,1.06678877]
[1720712775689,0.00082786,3129.4,3128.5,3.1964]
[1720712775879,0.00082786,3129.4,3128.3,3.004]
[1720712776223,0.00082786,3129.4,3128.1,2.4821]
[1720712776426,3.19577,3129.2,3127.9,7.24]
[1720712776714,3.19596,3129.0,3127.9,7.24]
[1720712776910,3.515616,3128.9,3127.9,7.24]
[1720712777428,3.515616,3128.9,3127.1,3.22]
[1720712777429,2.3806,3128.8,3127.1,7.24]
[1720712777572,3.19644,3128.5,3127.2,3.19765]
[1720712778094,3.19654,3128.4,3127.1,7.24]
[1720712778296,3.19663,3128.3,3127.1,7.24]
[1720712778624,0.639317,3128.2,3127.1,7.24]
[1720712778790,3.19652,3128.4,3127.1,7.24]
[1720712778991,2.3806,3128.8,3127.1,7.24]
[1720712778992,2.3806,3128.8,3127.1,10.43784]
[1720712779216,3.19623,3128.7,3127.1,10.43777]
[1720712779398,5.57672,3128.8,3127.1,7.24]
[1720712779598,2.3806,3128.8,3127.7,3.3125907]
[1720712779815,0.319596,3128.9,3127.8,0.33125907]
[1720712780002,3.19577,3129.2,3127.8,0.33125907]
[1720712780324,2.46522786,3129.4,3128.1,3.19677]
[1720712780521,0.00082786,3129.4,3128.1,3.19677]
[1720712780678,0.00082786,3129.4,3128.2,3.26063309]
[1720712780881,0.00082786,3129.4,3128.4,2.3182]
[1720712781175,0.00082786,3129.4,3128.5,0.23821231]
[1720712781377,0.00082786,3129.4,3128.8,3.19609]
[1720712781604,0.00082786,3129.4,3129.0,3.1959]
[1720712781844,0.00082786,3129.4,3129.0,3.19584]
[1720712782017,0.00082786,3129.4,3129.1,3.19579]
[1720712782226,0.00082786,3129.4,3129.3,3.1956]
[1720712782411,0.00082786,3129.4,3129.3,8.91749279]
[1720712782607,0.00082786,3129.4,3129.3,8.8536]
[1720712782826,0.00082786,3129.4,3129.3,12.0492]
[1720712783731,0.00082073,3130.9,3129.9,3.19497]
[1720712784033,0.00082073,3130.9,3130.1,3.19477]
[1720712784245,0.00082073,3130.9,3129.9,3.514467]
[1720712784246,0.00082073,3130.9,3130.4,2.2596]
[1720712784405,0.00082073,3130.9,3130.8,6.38814]